Cogmind - Beta 12 @@@ ROGUE MODE // 2023.04.22 @ 22:53:43 Player: Ms Vella Result: Destroyed by G-47 Trooper with Particle Gun Performance ------------- Evolutions (3) 1500 Regions Visited (5) 1000 Robots Destroyed (99) 495 Value Destroyed (3124) 3124 Prototype IDs (13) 260 Alien Tech Used (0) 0 Bonus (143) 143 TOTAL SCORE: 6522 Bonus ------- High Alert Combat Kills 6 Follower Combat Kills 137 Cogmind --------- Core Integrity 0/700 Matter 57/300 Energy 141/150 System Corruption 7% Temperature Cool (9) Movement Core (950) Ox18 Location -7/Storage Parts ------- > --- POWER (1) -------- Micro Nuclear Core > --- PROPULSION (3) --- (None) > --- UTILITY (7) ------ High-capacity Storage Unit Advanced Targeting Computer Hacking Suite System Shield > --- WEAPON (2) ------- Flak Gun Advanced Assault Cannon > --- INVENTORY (20) --- Improved Heat Sink Large Storage Unit Large Storage Unit High-capacity Battery (250) Machine Analyzer Advanced Targeting Computer Advanced Targeting Computer Weapon Cycler Transmission Jammer System Shield Recalibrator Light EM Pulse Cannon Precision Assault Rifle Shock Bomb Launcher Rocket Array Peak State ------------ > --- POWER ------------ Micro Nuclear Core > --- PROPULSION ------- Armored Treads Armored Treads Advanced Treads > --- UTILITY ---------- Improved Heat Sink High-capacity Storage Unit Advanced Targeting Computer Core Analyzer Hardened Light Armor Plating Hacking Suite System Shield > --- WEAPON ----------- Precision Assault Rifle Precision Assault Rifle > --- INVENTORY -------- Deuterium Engine Improved Treads Improved Heat Sink Large Storage Unit Large Storage Unit High-capacity Battery Compact Matter Pod Machine Analyzer Advanced Targeting Computer Weapon Cycler System Shield System Shield System Shield Recalibrator Light EM Pulse Cannon Light EM Pulse Cannon Light EM Pulse Cannon Precision Assault Rifle Shock Bomb Launcher Rocket Launcher [Rating: 47] Favorites ----------- Power Ion Engine Engine Ion Engine Power Core Micro Nuclear Core Propulsion Light Treads Treads Light Treads Leg Aluminum Leg Utility High-capacity Storage Unit Device Improved Heat Sink Storage High-capacity Storage Unit Processor Advanced Targeting Computer Hackware Hacking Suite Protection Light Armor Plating Weapon Precision Assault Rifle Energy Gun Medium Laser Energy Cannon Beam Cannon Ballistic Gun Precision Assault Rifle Ballistic Cannon Advanced Assault Cannon Launcher Rocket Launcher Build | -11 -10 -9 -8 -7 -7 ------- Run | Jun Mat Mat Mat Fac Sto Slots Evolved 6 | . . 2 2 2 . Power . | . . . . . . Propulsion 1 | . . 1 . . . Utility 5 | . . 1 2 2 . Weapon . | . . . . . . Parts Attached 94 | 1 9 23 33 19 9 Power 10 | . . 2 3 3 2 Engine 4 | . . 2 2 . . Core 6 | . . . 1 3 2 Reactor . | . . . . . . Propulsion 31 | . 6 11 10 3 1 Treads 18 | . . 4 10 3 1 Leg 13 | . 6 7 . . . Wheel . | . . . . . . Hover . | . . . . . . Flight . | . . . . . . Utility 27 | . 2 6 10 7 2 Device 8 | . 1 2 3 2 . Storage 1 | . 1 . . . . Processor 2 | . . . 1 1 . Hackware 4 | . . . 1 2 1 Protection 12 | . . 4 5 2 1 Artifact . | . . . . . . Weapon 26 | 1 1 4 10 6 4 Energy Gun 2 | 1 . 1 . . . Energy Cannon 6 | . . 1 4 . 1 Ballistic Gun 12 | . 1 2 4 4 1 Ballistic Cannon 2 | . . . . 1 1 Launcher 4 | . . . 2 1 1 Special Weapon . | . . . . . . Impact Weapon . | . . . . . . Slashing Weapon . | . . . . . . Piercing Weapon . | . . . . . . Special Melee Weapon . | . . . . . . Unidentified Prototypes 3 | . . 1 . 2 . Parts Lost 21 | . . 5 4 2 10 Power 2 | . . 1 . . 1 Propulsion 6 | . . 1 . 1 4 Utility 9 | . . 2 3 1 3 Weapon 4 | . . 1 1 . 2 Highest Loss Streak 8 | . . 4 1 1 8 To Critical Strikes . | . . . . . . Average Slot Usage (%) 98 | . 97 99 98 99 88 Engine 7 | . 14 10 6 2 . Core 2 | . . . 2 4 7 Treads 15 | . . 13 26 23 12 Leg 10 | . 27 19 . . . Device 9 | . 11 11 10 7 6 Storage 9 | . 14 11 9 7 7 Processor 5 | . . . 9 11 7 Hackware 8 | . . . 7 18 22 Protection 6 | . . 10 8 6 6 Energy Gun 3 | . 14 2 . . . Energy Cannon 4 | . . 9 9 1 . Ballistic Gun 10 | . 14 9 7 12 6 Naked Turns . | . . . . . . Heaviest Build 65 | 14 50 58 64 65 60 Greatest Support 65 | 20 20 60 60 65 65 Greatest Overweight (x) 2 | . 2 2 1 1 2 Average Overweight (x) . | . 1 . . . . Largest Inventory Capacity 20 | 8 20 20 20 20 20 Average Capacity 19 | 8 19 20 20 20 20 Most Carried 20 | 5 18 20 20 20 20 Average Carried 17 | 3 10 18 19 19 19 Final Capacity 20 | 8 20 20 20 20 20 Final Carried 20 | 2 17 20 20 20 15 Class Distribution -------------------- 58% | Mutant 32% | Hacker-Mutant 6% | Scavenger-Mutant Dominant Class ---------------- Mutant | -10/Materials Mutant | -9/Materials Mutant | -8/Materials Hacker-Mutant | -7/Factory Commander-Mutant | -7/Storage Resources | -11 -10 -9 -8 -7 -7 ----------- Run | Jun Mat Mat Mat Fac Sto Matter Collected 2065 | 196 160 472 548 642 47 Remotely . | . . . . . . Salvage Created 3525 | . 173 745 1075 1247 285 Parts 213 | . 20 46 67 66 14 Haulers Intercepted 2 | . . . . . 2 Recyclers Shooed 5 | . 3 1 . 1 . Parts Field Recycled . | . . . . . . Retrieved Matter . | . . . . . . Parts Self-Destructed . | . . . . . . Prevented . | . . . . . . Kills | -11 -10 -9 -8 -7 -7 ------- Run | Jun Mat Mat Mat Fac Sto Combat Hostiles Destroyed 80 | . 10 16 26 20 8 Guns 34 | . 10 5 5 14 . Cannons 29 | . . 11 11 5 2 AOE 15 | . . . 8 1 6 Classes Destroyed 16 | . 2 3 5 2 4 Worker 4 | . . . 1 1 2 Builder 3 | . . . 1 1 1 Tunneler 1 | . . . 1 . . Hauler 2 | . . . . . 2 Recycler 4 | . . 1 . 3 . Mechanic 2 | . . 1 . . 1 Operator 3 | . . . 1 2 . Swarmer 24 | . 9 4 8 3 . Grunt 28 | . 1 7 10 6 4 Brawler 2 | . . . 1 1 . Duelist 1 | . . . . . 1 Protector 1 | . . . . . 1 Sentry 15 | . . 5 7 3 . Demolisher 2 | . . . . . 2 Hunter 1 | . . . . 1 . Programmer 6 | . . . . 6 . Best Kill Streak 14 | . 3 4 5 5 14 Combat Bots Only 8 | . 3 4 5 3 8 Max Kills in Single Turn 9 | . 1 1 2 2 9 Gunslinging . | . . . . . . Exploded 5 | . . . 2 1 5 Melee . | . . . . . . Uniques/NPCs Destroyed . | . . . . . . Combat | -11 -10 -9 -8 -7 -7 -------- Run | Jun Mat Mat Mat Fac Sto Damage Taken 5925 | . 315 990 1653 1783 1184 Core 1155 | . 39 121 290 311 394 Absorbed by Shields 107 | . . . 107 . . Regen/Repaired (Parts) 94 | . . 94 . . . Core Remaining (%) 75 | 100 84 69 47 . . Volleys Fired 229 | . 22 56 73 66 12 Largest 2 | . 2 2 2 2 2 Hottest 110 | . 70 110 98 91 76 Shots Fired 418 | . 43 108 120 133 14 Gun 249 | . 43 55 46 103 2 Cannon 161 | . . 53 68 30 10 Launcher 8 | . . . 6 . 2 Special . | . . . . . . Kinetic 235 | . 21 44 46 116 8 Thermal 145 | . 22 64 59 . . Explosive 8 | . . . 6 . 2 Electromagnetic 30 | . . . 9 17 4 Robot Hit Streak 29 | . 7 14 29 21 12 Robot Miss Streak 4 | . 4 3 2 2 3 Penetration Max 1 | . . . . 1 . Secondary Targets 2 | . 1 . . 1 . Max Gunslinging Chain 1 | . 1 . . 1 . Shots Hit Robots 299 | . 25 78 92 94 10 Core Hits 185 | . 14 26 49 46 50 Critical Kills 1 | . . . . 1 . Critical Parts Destroyed 2 | . . . 1 1 . Critical Strikes 8 | . 1 1 2 3 1 Burn 2 | . 1 1 . . . Destroy 3 | . . . 1 2 . Blast 2 | . . . . 1 1 Corrupt 1 | . . . 1 . . Melee Attacks . | . . . . . . Impact . | . . . . . . Slashing . | . . . . . . Piercing . | . . . . . . Sneak Attacks . | . . . . . . Combat Hostiles . | . . . . . . Follow-up Attacks . | . . . . . . Damage Inflicted 7602 | . 355 1259 2328 2272 1388 Guns 3173 | . 355 550 505 1742 21 Cannons 2559 | . . 709 1285 411 154 Explosions 1870 | . . . 538 119 1213 Melee . | . . . . . . Ramming . | . . . . . . Kinetic 3104 | . 177 476 505 1843 103 Thermal 2160 | . 178 783 1080 119 . Explosive 1751 | . . . 538 . 1213 Electromagnetic 587 | . . . 205 310 72 Impact . | . . . . . . Slashing . | . . . . . . Piercing . | . . . . . . Highest Corruption 7 | . . 3 3 6 7 Average Corruption 4 | . . 2 3 4 6 Corruption Purged . | . . . . . . Corruption Blocked . | . . . . . . Effects 61 | . . 1 9 39 12 Message Errors 8 | . . . . 4 4 Matter Fused 15 | . . . 2 9 4 Heat Flow Errors 9 | . . . 1 7 1 Energy Discharges 8 | . . . 1 5 2 Parts Rejected 3 | . . . 1 1 1 Parts Fused 1 | . . . . 1 . Data Loss (minor) 9 | . . 1 2 6 . Data Loss (major) 2 | . . . . 2 . Misfires 4 | . . . 2 2 . Alerts 1 | . . . . 1 . Weapon Failures 1 | . . . . 1 . Overload Shots . | . . . . . . Overflow Damage 43 | . . . 28 3 12 Projectiles 5 | . . . 5 . . Explosions 38 | . . . 23 3 12 Melee . | . . . . . . Knockbacks 2 | . . . . 1 1 Impact . | . . . . . . Kinetic 2 | . . . . 1 1 Secondary . | . . . . . . Self-Inflicted Damage . | . . . . . . Shots . | . . . . . . Rammed . | . . . . . . Targets Rammed . | . . . . . . Kicked . | . . . . . . Crushed . | . . . . . . Highest Temperature 426 | . 63 426 168 253 212 Average Temperature 80 | . 22 127 34 78 75 Received Heat Transfer 1653 | . 24 366 828 315 120 Effects 6 | . . 6 . . . Shutdowns 1 | . . 1 . . . Interference 4 | . . 4 . . . Matter Decay 1 | . . 1 . . . Siege Activations . | . . . . . . Robots Corrupted . | . . . . . . Combat Hostiles . | . . . . . . Parts Fried 2 | . . . . 2 . Impact Corruptions . | . . . . . . Robots Melted 2 | . . . 2 . . Combat Hostiles 2 | . . . 2 . . Parts Melted 12 | . . 3 9 . . Heat Transferred 4529 | . 592 1776 1961 200 . Parts Sabotaged . | . . . . . . Parts Stolen . | . . . . . . Parts Stripped . | . . . . . . Power Chain Reactions 2 | . . . . 2 . Missiles Intercepted . | . . . . . . Alert | -11 -10 -9 -8 -7 -7 ------- Run | Jun Mat Mat Mat Fac Sto Peak Influence 467 | . 111 208 467 359 207 Initial 173 | . . 24 52 173 161 Average 149 | . 44 87 328 163 99 Maximum Alert Level 2 | . . 1 2 1 1 Low Security (%) 72 | 100 100 95 8 72 99 Level 1 23 | . . 4 69 27 . Level 2 4 | . . . 22 . . Level 3 . | . . . . . . Level 4 . | . . . . . . Level 5 . | . . . . . . High Security . | . . . . . . Max Security . | . . . . . . Squads Dispatched 9 | . . 2 . 5 2 Investigation 2 | . . 2 . . . Extermination 4 | . . . . 4 . Reinforcement 1 | . . . . 1 . Assault 2 | . . . . . 2 Garrison . | . . . . . . Intercept . | . . . . . . Searches Triggered . | . . . . . . Construction Impeded . | . . . . . . Haulers Reinforced . | . . . . . . Active Scanning Responses . | . . . . . . Cargo Convoy Interrupts . | . . . . . . Stealth | -11 -10 -9 -8 -7 -7 --------- Run | Jun Mat Mat Mat Fac Sto Distress Signals 6 | . 1 1 3 1 . Communications Jammed . | . . . . . . Distress Signals . | . . . . . . Times Spotted 139 | . 25 28 33 35 18 Peak Tracking Total 12 | . 3 6 6 4 12 Tactical Retreats 6 | . 1 1 2 2 . Traps | -11 -10 -9 -8 -7 -7 ------- Run | Jun Mat Mat Mat Fac Sto Traps Triggered 7 | . 1 3 2 . 1 Indirectly . | . . . . . . Trap Hack Attempts . | . . . . . . Triggered . | . . . . . . Disarmed . | . . . . . . Reprogrammed . | . . . . . . Reused . | . . . . . . Traps Extracted . | . . . . . . Installed . | . . . . . . Triggered . | . . . . . . Machines | -11 -10 -9 -8 -7 -7 ---------- Run | Jun Mat Mat Mat Fac Sto Machines Disabled 6 | . . . . 2 4 Max in Single Turn 1 | . . . . 1 1 Garrison Access 2 | . . . 1 . 1 Machines Repaired . | . . . . . . Machines Sabotaged . | . . . . . . Overloaded Fab Kills . | . . . . . . Hacking | -11 -10 -9 -8 -7 -7 --------- Run | Jun Mat Mat Mat Fac Sto Machines Accessed 33 | . 5 5 11 8 4 Terminals 26 | . 5 4 9 6 2 Fabricators . | . . . . . . Repair Stations 3 | . . 1 1 . 1 Recycling Units . | . . . . . . Scanalyzers 2 | . . . . 2 . Garrison Access 2 | . . . 1 . 1 Total Hacks 118 | . 16 11 31 50 10 Successful 73 | . 9 4 17 37 6 Failed 45 | . 7 7 14 13 4 Catastrophic 10 | . 1 1 2 4 2 Database Lockouts . | . . . . . . Manual 47 | . 5 5 18 15 4 Terminals 78 | . 16 9 27 18 8 Fabricators . | . . . . . . Repair Stations 5 | . . 2 2 . 1 Recycling Units . | . . . . . . Scanalyzers 32 | . . . . 32 . Garrison Access 3 | . . . 2 . 1 Terminal Hacks 27 | . 6 1 10 6 4 Record 1 | . . . . . 1 Robot Schematic 1 | . . . . 1 . Robot Analysis 2 | . 2 . . . . Prototype ID Bank 5 | . 1 . 3 1 . Level Access Points 1 | . . . 1 . . Branch Access Points 5 | . 1 1 2 1 . Emergency Access Points 1 | . 1 . . . . Terminal Index 1 | . . . . 1 . Repair Station Index 1 | . . . . 1 . Scanalyzer Index 1 | . . . 1 . . Alert Level 1 | . . . . . 1 Unreport Threat 2 | . . . . . 2 Security Status 1 | . . . 1 . . Registered Prototypes 1 | . . . 1 . . Zone Layout 3 | . 1 . 1 1 . Fabricator Hacks . | . . . . . . Repair Station Hacks 3 | . . 2 1 . . Scan Component 2 | . . 1 1 . . Repair 1 | . . 1 . . . Recycling Unit Hacks . | . . . . . . Scanalyzer 30 | . . . . 30 . Insert Component 15 | . . . . 15 . Analyze 15 | . . . . 15 . Garrison Access Hacks 2 | . . . 1 . 1 Seal Access 2 | . . . 1 . 1 Unauthorized Hacks 10 | . 3 1 4 1 1 Terminals 10 | . 3 1 4 1 1 Botnet 10 | . 3 1 4 1 1 Fabricators . | . . . . . . Repair Stations . | . . . . . . Recycling Units . | . . . . . . Scanalyzers . | . . . . . . Garrison Access . | . . . . . . Data Cores Recovered 1 | . . . . 1 . Used . | . . . . . . Hacking Detections 28 | . 4 4 8 9 3 Full Trace Events 2 | . . 1 1 . . Feedback Events . | . . . . . . Feedback Blocked . | . . . . . . Robot Schematics Acquired 1 | . . . . 1 . Robots Built . | . . . . . . Authchips . | . . . . . . Time . | . . . . . . Total Robot Build Rating . | . . . . . . Part Schematics Acquired 15 | . . . . 15 . Parts Built . | . . . . . . Authchips . | . . . . . . Time . | . . . . . . Total Part Build Rating . | . . . . . . Parts Repaired 1 | . . 1 . . . Time 51 | . . 51 . . . Parts Recycled . | . . . . . . Recycled Matter . | . . . . . . Retrieved Matter . | . . . . . . Retrieved Components . | . . . . . . Parts Scanalyzed 15 | . . . . 15 . Part Schematics Acquired 15 | . . . . 15 . Parts Damaged . | . . . . . . Bothacking | -11 -10 -9 -8 -7 -7 ------------ Run | Jun Mat Mat Mat Fac Sto Used RIF Installer . | . . . . . . Robots Hacked . | . . . . . . Non-combat . | . . . . . . Combat . | . . . . . . Robot Hacks Applied . | . . . . . . Relay Couplers Released . | . . . . . . Fabnet Peak Effective % . | . . . . . . Robots Rewired . | . . . . . . Allies Hacked . | . . . . . . Hacks Repelled . | . . . . . . Allies | -11 -10 -9 -8 -7 -7 -------- Run | Jun Mat Mat Mat Fac Sto Total Allies 12 | . . . . . 12 Largest Group 12 | . . . . . 12 Highest-Rated Group 235 | . . . . . 235 Highest-Rated Ally 31 | . . . . . 31 Total Orders . | . . . . . . Ally Attacks 37 | . . . . . 37 Total Damage 482 | . . . . . 482 Kills 5 | . . . . . 5 Allies Corrupted . | . . . . . . Allies Melted . | . . . . . . Intel | -11 -10 -9 -8 -7 -7 ------- Run | Jun Mat Mat Mat Fac Sto Robot Analysis Total 2 | . 2 . . . . Derelict Logs Recovered . | . . . . . . Drone Launches . | . . . . . . Drone Recoveries . | . . . . . . Exploration | -11 -10 -9 -8 -7 -7 ------------- Run | Jun Mat Mat Mat Fac Sto Turns Passed 8127 | 4 1905 1721 1618 2518 361 Spaces Moved 3264 | 1 686 638 610 1190 139 Core . | . . . . . . Treads 2217 | . . 278 610 1190 139 Legs 1047 | 1 686 360 . . . Wheels . | . . . . . . Hover . | . . . . . . Flight . | . . . . . . Fastest Speed 120 | 120 120 160 160 158 158 Average Speed 204 | 120 256 177 206 184 225 Slowest Speed 320 | 120 260 320 246 246 320 Overloaded Moves . | . . . . . . Propulsion Burnouts . | . . . . . . Robots Hopped . | . . . . . . Cave-ins Triggered . | . . . . . . Exploration Rate (%) 42 | 2 84 50 63 34 20 Regions Visited 5 Branch Regions 1 Pre-discovered Areas . | . . . . . . Known Exits Taken 2 | . . . 1 1 . Unknown Exits Taken 3 | 1 1 1 . . . Scrap Searched . | . . . . . . Spaces Dug 1 | . . . . 1 . Terrain Destroyed 65 | . . . 25 9 31 Melee . | . . . . . . Projectile 9 | . . . 2 5 2 AOE 56 | . . . 23 4 29 Terrain Rammed . | . . . . . . Walls Destroyed . | . . . . . . Machines Disabled . | . . . . . . Actions | -11 -10 -9 -8 -7 -7 --------- Run | Jun Mat Mat Mat Fac Sto Total 4321 | 5 790 1125 851 1381 169 Wait 603 | . 56 364 103 73 7 Move 3259 | . 685 637 609 1189 139 Hop . | . . . . . . Pick Up 63 | . 15 23 13 11 1 Fast Attach 28 | . 3 6 8 10 1 Attach 17 | . 2 6 3 2 4 Detach 1 | . . . . 1 . Swap 49 | 1 4 11 22 7 4 Drop 72 | 4 3 22 20 22 1 Fire 229 | . 22 56 73 66 12 Melee . | . . . . . . Ram . | . . . . . . Kick . | . . . . . . Crush . | . . . . . . Escape Stasis . | . . . . . . Rewire . | . . . . . . Trap . | . . . . . . Miscellaneous . | . . . . . . Route ------- -11/Junkyard -10/Materials (discovered 3 exits: *Mat x2 / *Min) -9/Materials (discovered 3 exits: *Mat x2 / Min) -8/Materials (discovered 3 exits: *Fac x3) -7/Factory (discovered 5 exits: [*Fac] / *Sto x2 / Low x2) -7/Storage History --------- Turn | Location | Event 5 | -11/Junkyard | Discovered new exit (range 0) 5 | -11/Junkyard | Entered Materials 252 | -10/Materials | Discovered new exit (range 20) 325 | -10/Materials | Build established: Mutant 698 | -10/Materials | Discovered new exit (range 12) 1417 | -10/Materials | Discovered new exit (range 15) 1790 | -10/Materials | Identified exit to Mines 1910 | -10/Materials | Entered another Materials area 1910 | -9/Materials | Evolved 2 slots: Propulsion x1, Utility x1 2390 | -9/Materials | Lost 4 parts (1p1n1u1w) 2827 | -9/Materials | Discovered new exit (range 10) 2994 | -9/Materials | Identified exit to Mines 3550 | -9/Materials | Repaired Imp. Assault Rifle 3591 | -9/Materials | Discovered new exit (range 16) 3631 | -9/Materials | Entered another Materials area 3631 | -8/Materials | Evolved 2 slots: Utility x2 4121 | -8/Materials | Build established: Scavenger-Mutant 4431 | -8/Materials | Build established: Mutant 4742 | -8/Materials | Identified exit to Factory 4862 | -8/Materials | Core integrity fell below 50% 5249 | -8/Materials | Entered Factory 5249 | -7/Factory | Evolved 2 slots: Utility x2 5562 | -7/Factory | Build established: Hacker-Mutant 6444 | -7/Factory | Discovered new exit (range 9) 7085 | -7/Factory | Identified exit to Storage 7085 | -7/Factory | Identified exit to Lower Caves 7637 | -7/Factory | Found Prototype Launcher 7637 | -7/Factory | Identified Rocket Array 7767 | -7/Factory | Entered Storage 7892 | -7/Storage | Assisted by bots powering up and referring to "LRC-V3" 8034 | -7/Storage | Met a pair of Derelict thieves 8104 | -7/Storage | Core integrity fell below 50% 8116 | -7/Storage | Core integrity fell below 20% 8128 | -7/Storage | Destroyed by G-47 Trooper with Particle Gun Last Messages --------------- 08120_ U-05 Engineer lays Concrete. 08120_ D-53 Grenadier Mni. Grenade Launcher blasted off. 08121_ The unstable cave ceiling collapses. 08121_ U-05 Engineer lays Concrete. 08121_ D-53 Grenadier destroyed. 08122_ U-05 Engineer lays Concrete. 08122_ Penetrated by Slug. 08122_ M-13 Machinist repairs G-47 Trooper. 08123_ The unstable cave ceiling collapses. 08123_ U-05 Engineer lays Concrete. 08124_ The unstable cave ceiling collapses. 08124_ X-62 Marksman knocked back. 08124_ U-05 Engineer lays Concrete. 08125_ The unstable cave ceiling collapses. 08125_ U-05 Engineer lays Concrete. 08126_ K-01 Serf collects debris. 08127_ Dropped Com. Matter Pod. 08127_ U-05 Engineer lays Concrete. 08128_ Extracted 47 matter. 08128_ U-05 Engineer lays Concrete. Map ----- +----------------------------------------------------+ | ?????????????????????????????????????????????????? | | ?????????????????????????????????????????????????? | | ?????????????????????????????????????????????????? | | ?????????????????????????????????????????????????? | | ?????????????????????????????????????????????????? | | ?????????????????????????????????????????????????? | | ?????????????????????????????????????????????????? | | ?????????????????????????????????????????????????? | | ?????????????????????????????????????????????????? | | ?????????????????????????????????????????????????? | | ????????????????????????" ?????????????????????? | | ?????????????????????" " ???????????????????? | | ?????????????????? %= u ???????????????????? | | ???????????????? =![*%x[ Yk #???????############# | | ?????????????????!%/ % [m! # #????#### ## | | ?????????????????? [ [g[ "????#" #" | | ?????????????????? [%# ##???#""" #T | | ??????????????????? % ]= #???#G #" | | ???????????????????? # ##??#""" """" ## | | ??????????????????""" # ## ???#" """" ## | | ???????????????????= ###???#### """" ## | | ????????????????????" # #??????# """" ## | | ?????????????# """""" #??????# ## | | ?????????????# # ############+####### | | ?????????????# | | ?????????????# # @ | | ?????????????????### | | ???????????????????### ##+########+######## | | ????????????????????# # # ## ### ##?????? | | ????????????????????### #T ## T#?????? | | ????????????????????? ####" "### #?????? | | ????????????????????########## !## #?????? | | ?????????????????????????????#== ########?????? | | ?????????????????????????????# = ==#????????????? | | ?????????????????????????????#= = =#????????????? | | ?????????????????????????????########????????????? | | ?????????????????????????????????????????????????? | | ?????????????????????????????????????????????????? | | ?????????????????????????????????????????????????? | | ?????????????????????????????????????????????????? | | | | | | | | | | | | | | | | | | | | | +----------------------------------------------------+ Best States ------------- Heat Dissipation 53 Energy Generation 15 Energy Capacity 275 Matter Stores 300 Matter Capacity 300 Sight Range 16 Terrain Scan Density 10 Armor Coverage 150 Evasion (%) 55 Targeting Accuracy 8 Core Analysis 6 Recoil Reduction 3 Offensive Hacking 20 Defensive Hacking 20 Item Schematics ----------------- Lrg. Storage Unit | -7/Factory | Scanalyzed Mic. Nuclear Core | -7/Factory | Scanalyzed Machine Analyzer | -7/Factory | Scanalyzed Hcp. Battery | -7/Factory | Scanalyzed System Shield | -7/Factory | Scanalyzed Weapon Cycler | -7/Factory | Scanalyzed Shock Bomb Launcher | -7/Factory | Scanalyzed Recalibrator | -7/Factory | Scanalyzed Imp. Heat Sink | -7/Factory | Scanalyzed Lgt. EM Pulse Cannon | -7/Factory | Scanalyzed Lgt. Treads | -7/Factory | Scanalyzed Adv. Targeting Computer | -7/Factory | Scanalyzed Rocket Launcher | -7/Factory | Scanalyzed Com. Matter Pod | -7/Factory | Scanalyzed Prc. Assault Rifle | -7/Factory | Scanalyzed Robot Schematics ------------------ G-47 Trooper | -7/Factory | Hacked Fabricated ------------ Nothing Alien Tech Used ----------------- None Achievements -------------- None Challenges ------------ None Game ------ Seed AdvancedTrapWell Manual? 0 Play Time 01:25:15 Cumulative 1050.1 hours Start 2023.04.22 @ 03:31:22 End 2023.04.22 @ 22:53:43 Sessions 3 Manual Loads 0 Difficulty Rogue Special Mode None Game No. 227 Rogue 11 Adventurer 216 Explorer 0 Win Type - Total 5 Types 4/0/1/0/0/0/0/0/0 Lore% 71 Gallery% 84 Achievement% 66 Wizard Run 0 Options --------- ASCII 0 Keyboard 0 Movement Mouse Keybinds 0 Fullscreen 0 Font 16/SmallcapsGlow Map View 76x50 Tactical HUD 1 Map Filters NONE Filters BRIGHTNESS(125)|SATURATION(75)|LOW_CONTRAST(13,24,33)|SHIFT_HUE(130) Steam 1 RUN: 2b9916ef-9aec-4a9e-963c-bce193df59d4